Cogmind - Beta 11.1 @@@ ROGUE MODE // 2022.08.06 @ 22:13:12 Player: John_Oxford Result: Self-destructed Performance ------------- Evolutions (2) 1000 Regions Visited (5) 1000 Robots Destroyed (13) 65 Value Destroyed (244) 244 Prototype IDs (3) 60 Alien Tech Used (0) 0 Bonus (300) 300 TOTAL SCORE: 2669 Bonus ------- Aligned with FarCom 300 Cogmind --------- Core Integrity 550/550 Matter 165/300 Energy 0/250 System Corruption 0% Temperature Cool (0) Movement Core (250) Ox4 Location -8/Materials Parts ------- > --- POWER (1) -------- Ion Engine > --- PROPULSION (4) --- Improved VTOL Module > --- UTILITY (4) ------ Sensor Array Hardlight Generator > --- WEAPON (2) ------- Heavy EM Shotgun > --- INVENTORY (5) ---- Reinforced Deuterium Engine Long-range Tractor Beam Rocket Launcher Peak State ------------ > --- POWER ------------ Ion Engine > --- PROPULSION ------- Flying Fortress v7 > --- UTILITY ---------- Sensor Array Transport Network Coupler Hardlight Generator > --- WEAPON ----------- Heavy EM Shotgun Heavy EM Shotgun > --- INVENTORY -------- Reinforced Deuterium Engine Long-range Tractor Beam Rocket Launcher [Rating: 46] Favorites ----------- Power Ion Engine Engine Ion Engine Propulsion Aluminum Leg Leg Aluminum Leg Flight Unit Flight Unit Utility Large Storage Unit Device Sensor Array Storage Large Storage Unit Processor Transport Network Coupler Weapon Assault Rifle Energy Gun Heavy EM Shotgun Ballistic Gun Assault Rifle Ballistic Cannon Light Cannon Launcher Grenade Launcher Build | -11 -10 -10 -10 -9 -8 ------- Run | Scr Mat Min Exi Min Mat Slots Evolved 4 | . . . . . 4 Power . | . . . . . . Propulsion 2 | . . . . . 2 Utility 2 | . . . . . 2 Weapon . | . . . . . . Parts Attached 28 | 6 11 2 2 . 7 Power 5 | 1 1 . 2 . 1 Engine 5 | 1 1 . 2 . 1 Core . | . . . . . . Reactor . | . . . . . . Propulsion 7 | 2 2 1 . . 2 Treads . | . . . . . . Leg 2 | 2 . . . . . Wheel . | . . . . . . Hover . | . . . . . . Flight 5 | . 2 1 . . 2 Utility 8 | 1 5 1 . . 1 Device 2 | . 1 . . . 1 Storage 5 | 1 4 . . . . Processor 1 | . . 1 . . . Hackware . | . . . . . . Protection . | . . . . . . Artifact . | . . . . . . Weapon 8 | 2 3 . . . 3 Energy Gun 3 | . . . . . 3 Energy Cannon . | . . . . . . Ballistic Gun 2 | 2 . . . . . Ballistic Cannon 2 | . 2 . . . . Launcher 1 | . 1 . . . . Special Weapon . | . . . . . . Impact Weapon . | . . . . . . Slashing Weapon . | . . . . . . Piercing Weapon . | . . . . . . Special Melee Weapon . | . . . . . . Unidentified Prototypes 3 | . . . . . 3 Parts Lost 1 | . . 1 . . . Power . | . . . . . . Propulsion 1 | . . 1 . . . Utility . | . . . . . . Weapon . | . . . . . . Highest Loss Streak 1 | . . 1 . . . To Critical Strikes . | . . . . . . Average Slot Usage (%) 81 | . 87 71 71 71 43 Engine 13 | . 14 14 14 14 9 Leg 17 | . 25 . . . . Flight 9 | . 2 28 28 28 7 Device 7 | . 4 14 14 14 14 Storage 8 | . 12 . . . . Processor 4 | . . 14 14 14 7 Ballistic Gun 17 | . 25 . . . . Naked Turns . | . . . . . . Heaviest Build 49 | 14 49 6 6 6 19 Greatest Support 50 | 20 20 8 8 8 50 Greatest Overweight (x) 6 | 2 2 . . . 6 Average Overweight (x) . | . . . . . . Largest Inventory Capacity 15 | 8 15 5 5 5 5 Average Capacity 10 | 7 13 5 5 5 5 Most Carried 15 | 8 15 4 5 5 5 Average Carried 7 | 4 9 3 4 5 3 Final Capacity 8 | 8 5 5 5 5 5 Final Carried 5 | 4 5 3 5 5 3 Class Distribution -------------------- 64% | Mutant 34% | Scavenger-Mutant Dominant Class ---------------- Mutant | -10/Materials Scavenger-Mutant | -10/Mines Scavenger-Mutant | -10/Exiles Scavenger-Scout | -9/Mines Scavenger-Scout | -8/Materials Resources | -11 -10 -10 -10 -9 -8 ----------- Run | Scr Mat Min Exi Min Mat Matter Collected 659 | 215 444 . . . . Remotely . | . . . . . . Salvage Created 560 | . 560 . . . . Parts 33 | . 33 . . . . Haulers Intercepted 1 | . 1 . . . . Recyclers Shooed 3 | . 3 . . . . Parts Field Recycled . | . . . . . . Retrieved Matter . | . . . . . . Parts Self-Destructed . | . . . . . . Prevented . | . . . . . . Kills | -11 -10 -10 -10 -9 -8 ------- Run | Scr Mat Min Exi Min Mat Combat Hostiles Destroyed 8 | . 8 . . . . Guns 8 | . 8 . . . . Classes Destroyed 6 | . 6 . . . . Worker 1 | . 1 . . . . Hauler 1 | . 1 . . . . Recycler 2 | . 2 . . . . Watcher 1 | . 1 . . . . Swarmer 3 | . 3 . . . . Grunt 5 | . 5 . . . . Best Kill Streak 6 | . 6 . . . . Combat Bots Only 3 | . 3 . . . . Max Kills in Single Turn 1 | . 1 . . . . Gunslinging . | . . . . . . Exploded . | . . . . . . Melee . | . . . . . . Uniques/NPCs Destroyed . | . . . . . . Combat | -11 -10 -10 -10 -9 -8 -------- Run | Scr Mat Min Exi Min Mat Damage Taken 475 | . 323 107 . 45 . Core 163 | . 67 63 . 33 . Absorbed by Shields . | . . . . . . Core Remaining (%) 67 | 100 . . . 34 . Volleys Fired 37 | . 37 . . . . Largest 2 | . 2 . . . . Hottest 40 | . 40 . . . . Shots Fired 74 | . 74 . . . . Gun 74 | . 74 . . . . Cannon . | . . . . . . Launcher . | . . . . . . Special . | . . . . . . Kinetic 74 | . 74 . . . . Thermal . | . . . . . . Explosive . | . . . . . . Electromagnetic . | . . . . . . Robot Hit Streak 9 | . 9 . . . . Robot Miss Streak 4 | . 4 . . . . Penetration Max . | . . . . . . Secondary Targets . | . . . . . . Shots Hit Robots 43 | . 43 . . . . Core Hits 24 | . 24 . . . . Critical Kills . | . . . . . . Critical Parts Destroyed . | . . . . . . Critical Strikes . | . . . . . . Melee Attacks . | . . . . . . Impact . | . . . . . . Slashing . | . . . . . . Piercing . | . . . . . . Sneak Attacks . | . . . . . . Combat Hostiles . | . . . . . . Follow-up Attacks . | . . . . . . Damage Inflicted 541 | . 541 . . . . Guns 539 | . 539 . . . . Cannons . | . . . . . . Explosions . | . . . . . . Melee . | . . . . . . Ramming 2 | . 2 . . . . Kinetic 539 | . 539 . . . . Thermal . | . . . . . . Explosive . | . . . . . . Electromagnetic . | . . . . . . Impact . | . . . . . . Slashing . | . . . . . . Piercing . | . . . . . . Highest Corruption . | . . . . . . Average Corruption . | . . . . . . Corruption Purged . | . . . . . . Corruption Blocked . | . . . . . . Overload Shots . | . . . . . . Overflow Damage . | . . . . . . Projectiles . | . . . . . . Explosions . | . . . . . . Melee . | . . . . . . Knockbacks . | . . . . . . Impact . | . . . . . . Kinetic . | . . . . . . Secondary . | . . . . . . Self-Inflicted Damage . | . . . . . . Shots . | . . . . . . Rammed . | . . . . . . Targets Rammed 1 | . 1 . . . . Kicked 1 | . 1 . . . . Crushed . | . . . . . . Highest Temperature 15 | . 2 15 . . . Average Temperature 3 | . 2 6 . . . Received Heat Transfer 198 | . 120 57 . 21 . Siege Activations . | . . . . . . Robots Corrupted . | . . . . . . Combat Hostiles . | . . . . . . Parts Fried . | . . . . . . Impact Corruptions . | . . . . . . Robots Melted . | . . . . . . Combat Hostiles . | . . . . . . Parts Melted . | . . . . . . Heat Transferred . | . . . . . . Parts Sabotaged . | . . . . . . Parts Stolen . | . . . . . . Parts Stripped . | . . . . . . Power Chain Reactions . | . . . . . . Missiles Intercepted . | . . . . . . Alert | -11 -10 -10 -10 -9 -8 ------- Run | Scr Mat Min Exi Min Mat Peak Influence 122 | . 122 60 . 15 5 Initial 5 | . . . . . 5 Average 40 | . 45 26 . 9 5 Maximum Alert Level . | . . . . . . Low Security (%) 100 | 100 100 100 . 100 100 Level 1 . | . . . . . . Level 2 . | . . . . . . Level 3 . | . . . . . . Level 4 . | . . . . . . Level 5 . | . . . . . . High Security . | . . . . . . Max Security . | . . . . . . Squads Dispatched 4 | . 4 . . . . Investigation 1 | . 1 . . . . Extermination . | . . . . . . Reinforcement 3 | . 3 . . . . Assault . | . . . . . . Garrison . | . . . . . . Intercept . | . . . . . . Searches Triggered . | . . . . . . Construction Impeded . | . . . . . . Haulers Reinforced . | . . . . . . Active Scanning Responses . | . . . . . . Cargo Convoy Interrupts . | . . . . . . Stealth | -11 -10 -10 -10 -9 -8 --------- Run | Scr Mat Min Exi Min Mat Distress Signals 2 | . 2 . . . . Communications Jammed . | . . . . . . Distress Signals . | . . . . . . Times Spotted 33 | . 22 5 . 6 . Peak Tracking Total 6 | . 5 5 . 6 . Tactical Retreats 2 | . . 2 . . . Traps | -11 -10 -10 -10 -9 -8 ------- Run | Scr Mat Min Exi Min Mat Traps Triggered 3 | . 3 . . . . Indirectly . | . . . . . . Trap Hack Attempts . | . . . . . . Triggered . | . . . . . . Disarmed . | . . . . . . Reprogrammed . | . . . . . . Reused . | . . . . . . Traps Extracted . | . . . . . . Installed . | . . . . . . Triggered . | . . . . . . Machines | -11 -10 -10 -10 -9 -8 ---------- Run | Scr Mat Min Exi Min Mat Machines Disabled . | . . . . . . Max in Single Turn . | . . . . . . Machines Sabotaged . | . . . . . . Garrisons Compromised . | . . . . . . Overloaded Fab Kills . | . . . . . . Hacking | -11 -10 -10 -10 -9 -8 --------- Run | Scr Mat Min Exi Min Mat Machines Accessed 4 | . 1 . 3 . . Terminals 1 | . 1 . . . . Fabricators . | . . . . . . Repair Stations . | . . . . . . Recycling Units . | . . . . . . Scanalyzers . | . . . . . . Garrison Access . | . . . . . . Total Hacks 28 | . 2 . 26 . . Successful 27 | . 1 . 26 . . Failed 1 | . 1 . . . . Catastrophic . | . . . . . . Database Lockouts . | . . . . . . Manual 6 | . 1 . 5 . . Terminals 2 | . 2 . . . . Fabricators . | . . . . . . Repair Stations . | . . . . . . Recycling Units . | . . . . . . Scanalyzers . | . . . . . . Garrison Access . | . . . . . . Terminal Hacks 27 | . 1 . 26 . . Record 27 | . 1 . 26 . . Fabricator Hacks . | . . . . . . Repair Station Hacks . | . . . . . . Recycling Unit Hacks . | . . . . . . Scanalyzer . | . . . . . . Garrison Access Hacks . | . . . . . . Unauthorized Hacks . | . . . . . . Terminals . | . . . . . . Fabricators . | . . . . . . Repair Stations . | . . . . . . Recycling Units . | . . . . . . Scanalyzers . | . . . . . . Garrison Access . | . . . . . . Data Cores Recovered . | . . . . . . Used . | . . . . . . Hacking Detections 1 | . 1 . . . . Full Trace Events . | . . . . . . Feedback Events . | . . . . . . Feedback Blocked . | . . . . . . Robot Schematics Acquired . | . . . . . . Robots Built . | . . . . . . Authchips . | . . . . . . Time . | . . . . . . Total Robot Build Rating . | . . . . . . Part Schematics Acquired . | . . . . . . Parts Built . | . . . . . . Authchips . | . . . . . . Time . | . . . . . . Total Part Build Rating . | . . . . . . Parts Repaired . | . . . . . . Time . | . . . . . . Parts Recycled . | . . . . . . Recycled Matter . | . . . . . . Retrieved Matter . | . . . . . . Retrieved Components . | . . . . . . Parts Scanalyzed . | . . . . . . Part Schematics Acquired . | . . . . . . Parts Damaged . | . . . . . . Bothacking | -11 -10 -10 -10 -9 -8 ------------ Run | Scr Mat Min Exi Min Mat Used RIF Installer . | . . . . . . Robots Hacked . | . . . . . . Non-combat . | . . . . . . Combat . | . . . . . . Robot Hacks Applied . | . . . . . . Relay Couplers Released . | . . . . . . Fabnet Peak Effective % . | . . . . . . Robots Rewired . | . . . . . . Allies Hacked . | . . . . . . Hacks Repelled . | . . . . . . Allies | -11 -10 -10 -10 -9 -8 -------- Run | Scr Mat Min Exi Min Mat Total Allies . | . . . . . . Largest Group . | . . . . . . Highest-Rated Group . | . . . . . . Highest-Rated Ally . | . . . . . . Total Orders . | . . . . . . Ally Attacks . | . . . . . . Total Damage . | . . . . . . Kills . | . . . . . . Allies Corrupted . | . . . . . . Allies Melted . | . . . . . . Intel | -11 -10 -10 -10 -9 -8 ------- Run | Scr Mat Min Exi Min Mat Robot Analysis Total . | . . . . . . Derelict Logs Recovered . | . . . . . . Drone Launches . | . . . . . . Drone Recoveries . | . . . . . . Exploration | -11 -10 -10 -10 -9 -8 ------------- Run | Scr Mat Min Exi Min Mat Turns Passed 1908 | 65 1248 60 455 10 70 Spaces Moved 2155 | 49 666 155 1206 28 51 Core 41 | 32 . . . . 9 Treads . | . . . . . . Legs 563 | 17 546 . . . . Wheels . | . . . . . . Hover . | . . . . . . Flight 1551 | . 120 155 1206 28 42 Fastest Speed 37 | 50 37 37 37 37 50 Average Speed 79 | 102 163 37 37 37 96 Slowest Speed 350 | 150 260 37 37 37 350 Overloaded Moves . | . . . . . . Propulsion Burnouts . | . . . . . . Robots Hopped 2 | . . 2 . . . Cave-ins Triggered . | . . . . . . Exploration Rate (%) 37 | 3 72 35 93 16 6 Regions Visited 5 Branch Regions 3 Pre-discovered Areas . | . . . . . . Known Exits Taken . | . . . . . . Unknown Exits Taken 5 | 1 1 1 1 1 . Scrap Searched . | . . . . . . Spaces Dug . | . . . . . . Terrain Destroyed . | . . . . . . Melee . | . . . . . . Projectile . | . . . . . . AOE . | . . . . . . Terrain Rammed . | . . . . . . Walls Destroyed . | . . . . . . Machines Disabled . | . . . . . . Actions | -11 -10 -10 -10 -9 -8 --------- Run | Scr Mat Min Exi Min Mat Total 2287 | 62 752 155 1216 27 75 Wait 7 | . 5 . . . 2 Move 2146 | 48 665 150 1205 27 51 Hop 2 | . . 2 . . . Pick Up 38 | 8 19 . 3 . 8 Fast Attach 7 | 2 4 . 1 . . Attach 17 | 4 3 2 1 . 7 Detach 1 | . . . 1 . . Swap 4 | . 4 . . . . Drop 27 | . 14 1 5 . 7 Fire 37 | . 37 . . . . Melee . | . . . . . . Ram . | . . . . . . Kick 1 | . 1 . . . . Crush . | . . . . . . Escape Stasis . | . . . . . . Rewire . | . . . . . . Trap . | . . . . . . Miscellaneous . | . . . . . . Route ------- -11/Scrapyard -10/Materials -10/Mines -10/Exiles -9/Mines -8/Materials (discovered 1 exit: [*Sto]) History --------- Turn | Location | Event 6 | -11/Scrapyard | Discovered new exit (range 15) 66 | -11/Scrapyard | Entered Materials 318 | -10/Materials | Build established: Mutant 802 | -10/Materials | Discovered new exit (range 6) 1314 | -10/Materials | Entered Mines 1325 | -10/Mines | Core integrity fell below 50% 1372 | -10/Mines | Deemed a non-threat by the Exiles lab entrance 1372 | -10/Mines | Discovered new exit (range 5) 1374 | -10/Mines | Entered Exiles 1392 | -10/Exiles | Met 8R-AWN 1402 | -10/Exiles | Met EX-HEX 1418 | -10/Exiles | Met EX-DEC 1430 | -10/Exiles | Visited The Gauntlet 1501 | -10/Exiles | Build established: Scavenger-Mutant 1540 | -10/Exiles | Discovered new exit (range 15) 1579 | -10/Exiles | Met EX-BIN 1717 | -10/Exiles | Aligned with FarCom system 1718 | -10/Exiles | Given EX-Vault access code 1729 | -10/Exiles | Opened EX-Vault 1735 | -10/Exiles | Found Prototype Flight Unit 1748 | -10/Exiles | Warned to stay clear of 0b10 Research branches 1829 | -10/Exiles | Left Exiles lab with Flying Fortress v7 1829 | -10/Exiles | Entered Mines 1836 | -9/Mines | Discovered new exit (range 9) 1839 | -9/Mines | Entered Materials 1839 | -8/Materials | Evolved 4 slots: Propulsion x2, Utility x2 1841 | -8/Materials | Identified Flying Fortress v7 1842 | -8/Materials | Discovered new exit (range 7) 1909 | -8/Materials | Self-destructed Last Messages --------------- 01842_ Dropped Ion Engine. 01842_ EXIT=FOUND 01843_ Acquired Ion Engine. 01853_ T-07 Excavator is excavating. 01855_ Acquired Prototype Energy Gun. 01858_ Acquired Hardlight Generator. 01860_ Acquired Lrn. Tractor Beam. 01866_ Acquired Rocket Launcher. 01872_ Identified Hvy. EM Shotgun. 01872_ Flying Fortress v7 broken. 01872_ Malfunction: Power surge. 01876_ Dropped Faulty Hvy. EM Shotgun. 01881_ Acquired Faulty Hvy. EM Shotgun. 01882_ Transport Network Coupler broken. 01882_ Malfunction: Power surge. 01890_ Dropped Broken Flying Fortress v7. 01891_ Discarded Broken Transport Network Coupler. 01892_ Dropped Faulty Hvy. EM Shotgun. 01899_ Acquired Prototype Flight Unit. 01903_ Identified Imp. VTOL Module. Map ----- +----------------------------------------------------+ | | | | | | | | | | | | | | | | | | | | | | | ?????????????????????????????????????????????????? | | ?????????????????????????????????????????????????? | | ?????????????????????????????????????????????????? | | ?????????????????????????????????????????????????? | | ????????????#######??????????????????????????????? | | ?????######## #??????????????????????????????? | | ?????# = #??????????????????????????????? | | ?????# = < #??????????????????????????????? | | ?????# #??????????????????????????????? | | ?????####+### #??????????????????????????????? | | ??????? ## ###############?????????????????? | | ????? ## # #?????????????????? | | ??? """ """ ## # ! = #?????????????????? | | ??# """ """ ## + ! [! #?????????????????? | | ??# """ """ ## # @= #?????????????????? | | ??# """ """ ## # #?????????????????? | | ??? """ """ ## # ! #?????????????????? | | ????? ??? ## ###############?????????????????? | | ?????##?????## #???????????????????????????????? | | ?????????????# #???????????????????????????????? | | ?????????????# #???????????????????????????????? | | ?????????????# #???????????????????????????????? | | ?????????????# ???????????????????????????????? | | ?????????????# ???????????????o???????????????? | | ?????????????# ???????????????????????????????? | | ?????????????# #???????????????????????????????? | | ?????????????# w????????????????????????????????? | | ????????????? ????????????????????????????????? | | ?????????????? ????????????????????????????????? | | ?????????????????????????????????????????????????? | | ?????????????????????????????????????????????????? | | ?????????????????????????????????????????????????? | | ?????????????????????????????????????????????????? | | ?????????????????????????????????????????????????? | | ?????????????????????????????????????????????????? | | ?????????????????????????????????????????????????? | | ?????????????????????????????????????????????????? | | ?????????????????????????????????????????????????? | | ?????????????????????????????????????????????????? | +----------------------------------------------------+ Best States ------------- Heat Dissipation 31 Energy Generation 10 Energy Capacity 250 Matter Stores 300 Matter Capacity 300 Sight Range 16 Robot Scan Range 14 Terrain Scan Density 10 Evasion (%) 62 Item Schematics ----------------- None Robot Schematics ------------------ None Fabricated ------------ Nothing Alien Tech Used ----------------- None Achievements -------------- Librarian Challenges ------------ None Game ------ Seed LinkedVisualWarhead Manual? 0 Play Time 00:21:48 Cumulative 9.6 hours Start 2022.08.06 @ 21:46:47 End 2022.08.06 @ 22:13:12 Sessions 1 Manual Loads 0 Difficulty Rogue Special Mode None Game No. 28 Rogue 28 Adventurer 0 Explorer 0 Win Type - Total 0 Types 0/0/0/0/0/0/0/0/0 Lore% 8 Gallery% 18 Achievement% 16 Wizard Run 0 Options --------- ASCII 0 Keyboard 0 Movement Arrows Keybinds 0 Fullscreen 1 Font 24/Smallcaps Map View 76x50 Tactical HUD 1 Map Filters NONE Filters NONE Steam 1 RUN: 2d1f3563-f16c-40f6-ac58-ebc91ca2472f